Workbook

Sheet 注意事項
A2: ◆ 記入注意事項 ◆
A3: 1 | B3: 請求書の提出期限は当社指定締切日後3日以内(15日締めであれば18日必着）に本社又は各作業所へ提出して下さい。
A4: 2 | B4: 当社指定請求書を印刷して使用して下さい。尚、紙にて提出をお願い致します。(現状 データでの提出は受付けていません）
B5: 貴社名の所に必ず社印を押印して下さい
B6: ※ Excelデータでは記入欄がカラー表示されていますが白黒で印刷されます（白黒印刷で提出してください）
A7: 3 | B7: インボイス登録事業者は記入漏れの無いようにご注意ください。
B8: （記入漏れ等があった場合には再発行して頂くこととなります。場合によってはその月にお支払できない場合がありますのでご注意ください）
A9: 4 | B9: 当社指定請求書(必須）及び出来高内訳書（インボイスの要件を満たしていれば貴社の書式でも構いません）を提出してください。
B10: 尚、インボイス登録事業者は各自社の適格請求書を必ず添付して下さい。
B11: 適格請求書を添付して頂くことで出来高内訳書の代用が出来ます。（適格請求書の内訳明細として認められるものに限る）
A12: 5 | B12: 同一工事であっても1発注につき1枚ずつの請求書の発行を行ってください。(消費税計算上）
A13: 6 | B13: 当社指定請求書の提出時、総括表（請求書一覧）を一緒に提出して下さい。
A14: 7 | B14: 立替金・災防協協力費につきましては弊社より請求書を発行させて頂きお支払いの際に差し引かさせて頂きます。
A15: 8 | B15: ご不明の際は弊社 経理課までご連ご連絡下さいませ。 電話048-648-2211
A17: ※ 2023.10.1以降発行される請求書は旧指定請求書は使用できません。

Sheet 指定請求書
A1: 請 求 書（工事別）
G2: No.1
D3: 請求年月日 | E3: 西暦
D4: 貴社名
A5: 共栄建設株式会社 御中 | D5: 住 所 | E5: 〒
A6: さいたま市大宮区高鼻町1-25-1
D7: TEL / FAX
D8: 登録番号 | E8: T
E9: 免税事業者
A11: 工事名称 | F11: の工事代として
A12: 工事品目等
A13: ※ 貴社発行の適格請求書、又は別紙出来高明細書を添付して下さい。（添付漏れの際はお支払できません）
B14: 注文番号 | C14: 契約金額(税込) | D14: 請求済額（税込） | E14: 今回請求額（税込） | F14: 残額（税込）
D15: 0 | F15: =IF(C15="","",C15-D15-E15) -> 
B17: 請求金額 （税込） | D17: =SUM(E22:E26) -> 0
A19: 取引日 | B19: 注文番号 | C19: 契約金額(税抜) | D19: 請求済額（税抜） | E19: 今回請求額（税抜） | F19: 残額（税抜） | G19: 税 率 | H19: 10%
D20: 0 | F20: =IF(C20="","",C20-D20-E20) ->  | H20: 8%
D21: 0 | F21: =IF(C21="","",C21-D21-E21) ->  | H21: 0%
A22: ※別紙内訳書等のとおり | D22: 小計 10％対象
D23: 10％消費税額
D24: 小計 8％対象
D25: 8％消費税額
A26: ※ 太線枠内をご記入ください。 | D26: 小計 非課税対象
A27: ※ 8％対象の取引は軽減税率適用商品。
A30: ＜社内使用欄＞
A40: 支払条件：現金（ ）％ でんさい（ ）％ 期間（ ）日
A41: 協 力 費： 1.5 ・ 2 ・ 2.5 ・ 4 ・ 無/1,000 外注扱（ ）
A42: 備 考：

Sheet 出来高内訳書
B1: 出来高内訳書 | L1: No,2
H2: 作成年月日
B3: 工 事 名 称 | H3: 貴 社 名
B4: 注 文 番 号 | H4: 住 所 | L4: ※ 税 抜
H5: 登録番号 | I5: T
A7: 取引年月日 | B7: 工事種別 | C7: 契約金額 又は注文金額 | G7: 前回までの出来高 | I7: 今回出来高 | K7: 残 金 | M7: 税率 | N7: 10%
C8: 数量 | D8: 単位 | E8: 単価 | F8: 金額 | G8: 数量 | H8: 金額 | I8: 数量 | J8: 金額 | K8: 数量 | L8: 金額 | N8: 8%
F9: =IF(E9="","",C9*E9) ->  | H9: =IF(E9="","",E9*G9) ->  | J9: =IF(E9="","",E9*I9) ->  | K9: =IF(C9="","",C9-G9-I9) ->  | L9: =IF(E9="","",F9-H9-J9) ->  | N9: 0%
F10: =IF(E10="","",C10*E10) ->  | H10: =IF(E10="","",E10*G10) ->  | J10: =IF(E10="","",E10*I10) ->  | K10: =IF(C10="","",C10-G10-I10) ->  | L10: =IF(E10="","",F10-H10-J10) -> 
B30: 計 | F30: =SUM(F9:F29) -> 0 | H30: =SUM(H9:H29) -> 0 | J30: =SUM(J9:J29) -> 0 | L30: =SUM(L9:L29) -> 0

Sheet 総括表
A1: 総 括 表 （当月請求書一覧）
G2: No.1
D3: 作成年月日 | E3: 西暦
D4: 貴社名
A5: 共栄建設株式会社 御中 | D5: 住 所 | E5: 〒
A6: さいたま市大宮区高鼻町1-25-1
D7: TEL / FAX
D8: 登録番号 | E8: T
A11: 請求年月日 | B11: 注文番号 | C11: 工事名称 | E11: 契約金額(税込) | F11: 今回請求額(税込）
E27: 計 | F27: =SUM(F12:F26) -> 0
A28: ※ 太線枠内をご記入ください
A29: ※ 期間中に発行した指定請求書（工事別）をこちらの用紙に一覧としてまとめてご記入ください

Sheet 指定請求書 見本（契約分）
A1: 請 求 書（工事別）
G2: No.1
D3: 請求年月日 | E3: 西暦 | F3: 2025.9.1
D4: 貴社名 | E4: 〇△電気設備 株式会社
A5: 共栄建設株式会社 御中 | D5: 住 所 | E5: 〒330-0803
A6: さいたま市大宮区高鼻町1-25-1 | E6: 埼玉県さいたま市大宮区高鼻町1-25-1
D7: TEL / FAX | E7: tel048-648-2211 fax048-642-2218
D8: 登録番号 | E8: T | F8: 01234567890
E9: 免税事業者
A11: 工事名称 | B11: 〇〇マンション新築 | F11: の工事代として
A12: 工事品目等 | B12: 電気設備工事
A13: ※ 貴社発行の適格請求書、又は別紙出来高明細書を添付して下さい。（添付漏れの際はお支払できません）
B14: 注文番号 | C14: 契約金額(税込) | D14: 請求済額（税込） | E14: 今回請求額（税込） | F14: 残額（税込）
B15: 12345 | C15: 1,100,000 | D15: 176,000 | E15: 352,000 | F15: =SUM(C15-D15-E15) -> 572,000
B17: 請求金額 （税込） | D17: =SUM(E22:E25) -> 352,000
A19: 取引日 | B19: 注文番号 | C19: 契約金額(税抜) | D19: 請求済額（税抜） | E19: 今回請求額（税抜） | F19: 残額（税抜） | G19: 税 率 | H19: 10%
A20: 2025.9.15 | B20: 12345 | C20: 1,000,000 | D20: 160,000 | E20: 320,000 | F20: =SUM(C20-D20-E20) -> 520,000 | G20: 10% | H20: 8%
H21: 0%
A22: ※別紙内訳書等のとおり | D22: 小計 10％対象 | E22: =SUM(E20) -> 320,000
D23: 10％消費税額 | E23: 32,000
D24: 小計 8％対象 | E24: =SUM(F21) -> 0
D25: 8％消費税額 | E25: 0 | H25: 発注契約(書面による取交し）がある場合、注文番号を含めすべて埋めてください(税込みで記入）
A26: ※ 太線枠内をご記入ください。 | D26: 小計 非課税対象
A27: ※ 8％対象の取引は軽減税率適用商品。
A30: ＜社内使用欄＞
A40: 支払条件：現金（ ）％ 手形（ ）％ 期間（ ）日
A41: 協力費： 1.5 ・ 2 ・ 2.5 ・ 4 /1,000 外注扱（ ）

Sheet 指定請求書 見本 (契約外・納品等時)
A1: 請 求 書（工事別）
G2: No.1
D3: 請求年月日 | E3: 西暦 | F3: 2025.9.1
D4: 貴社名 | E4: 〇△電気設備 株式会社
A5: 共栄建設株式会社 御中 | D5: 住 所 | E5: 〒330-0803
A6: さいたま市大宮区高鼻町1-25-1 | E6: 埼玉県さいたま市大宮区高鼻町1-25-1
D7: TEL / FAX | E7: tel048-648-2211 fax048-642-2218
D8: 登録番号 | E8: T | F8: 01234567890
E9: 免税事業者
A11: 工事名称 | B11: ×××ビルLED蛍光管納品 | F11: の工事代として
A12: 工事品目等 | B12: LED蛍光管納品
A13: ※ 貴社発行の適格請求書、又は別紙出来高明細書を添付して下さい。（添付漏れの際はお支払できません）
B14: 注文番号 | C14: 契約金額(税込) | D14: 請求済額（税込） | E14: 今回請求額（税込） | F14: 残額（税込）
E15: 44,000
B17: 請求金額 （税込） | D17: =SUM(E22:E25) -> 44,000
A19: 取引日 | B19: 注文番号 | C19: 契約金額(税抜) | D19: 請求済額（税抜） | E19: 今回請求額（税抜） | F19: 残額（税抜） | G19: 税 率 | H19: 10%
A20: 2025.9.4 | E20: 40,000 | G20: 10% | H20: 8%
H21: 0%
A22: ※別紙内訳書等のとおり | D22: 小計 10％対象 | E22: =SUM(E20) -> 40,000
D23: 10％消費税額 | E23: 4,000
D24: 小計 8％対象 | E24: =SUM(F21) -> 0
D25: 8％消費税額 | E25: 0 | H25: 発注契約(書面による取交し）がある場合、注文番号を含めすべて埋めてください(税込みで記入）
A26: ※ 太線枠内をご記入ください。 | D26: 小計 非課税対象
A27: ※ 8％対象の取引は軽減税率適用商品。
A30: ＜社内使用欄＞
A40: 支払条件：現金（ ）％ 手形（ ）％ 期間（ ）日
A41: 協力費： 1.5 ・ 2 ・ 2.5 ・ 4 /1,000 外注扱（ ）

Sheet 出来高内訳書 見本(契約分)
B1: 出来高内訳書 | L1: No,2
H2: 作成年月日 | I2: 2025.9.15
B3: 工 事 名 称 | C3: 〇〇マンション新築 | H3: 貴 社 名 | I3: 〇△電気設備 株式会社
B4: 注 文 番 号 | C4: 12345 | H4: 住 所 | I4: さいたま市大宮区高鼻町〇-〇 | L4: ※ 税 抜
H5: 登録番号 | I5: T | J5: 1234567890
A7: 取引年月日 | B7: 工事種別 | C7: 契約金額 又は注文金額 | G7: 前回までの出来高 | I7: 今回出来高 | K7: 残 金 | M7: 税率 | N7: 10%
C8: 数量 | D8: 単位 | E8: 単価 | F8: 金額 | G8: 数量 | H8: 金額 | I8: 数量 | J8: 金額 | K8: 数量 | L8: 金額 | N8: 8%
A9: 2025.9.15 | B9: 照明器具LED LE2510 | C9: 3.00 | D9: 台 | E9: 100,000 | F9: =SUM(C9*E9) -> 300,000 | G9: 1.00 | H9: =SUM(E9*G9) -> 100,000 | I9: 2.00 | J9: =SUM(E9*I9) -> 200,000 | K9: =SUM(C9-G9-I9) -> 0.00 | L9: =SUM(F9-H9-J9) -> 0 | M9: 10% | N9: 0%
B10: 設置費用 | C10: 3.00 | D10: 式 | E10: 60,000 | F10: =SUM(C10*E10) -> 180,000 | G10: 1.00 | H10: 60,000 | I10: 2.00 | J10: 120,000 | K10: =SUM(C10-G10-I10) -> 0.00 | L10: =SUM(F10-H10-J10) -> 0 | M10: 10%
B11: 防犯カメラ K-221 | C11: 2.00 | D11: 台 | E11: 200,000 | F11: 400,000 | G11: 0.00 | H11: 0 | I11: 0.00 | J11: 0 | K11: 2.00 | L11: 400,000 | M11: 10%
B12: 設置費用 | C12: 2.00 | D12: 式 | E12: 50,000 | F12: 100,000 | G12: 0.00 | H12: 0 | I12: 0.00 | J12: 0 | K12: 2.00 | L12: 100,000 | M12: 10%
B13: 雑材・処分費用 | C13: 1.00 | D13: 式 | E13: 20,000 | F13: 20,000 | G13: 0.00 | H13: 0 | I13: 0.00 | J13: 0 | K13: 1.00 | L13: 20,000 | M13: 10%
F14: 0 | H14: 0 | J14: 0 | K14: 0.00 | L14: 0
F15: 0 | H15: 0 | J15: 0 | K15: 0.00 | L15: 0
F16: 0 | H16: 0 | J16: 0 | K16: 0.00 | L16: 0
F17: 0 | H17: 0 | J17: 0 | K17: 0.00 | L17: 0
F18: 0 | H18: 0 | J18: 0 | K18: 0.00 | L18: 0
F19: 0 | H19: 0 | J19: 0 | K19: 0.00 | L19: 0
F20: 0 | H20: 0 | J20: 0 | K20: 0.00 | L20: 0
F21: 0 | H21: 0 | J21: 0 | K21: 0.00 | L21: 0
F22: 0 | H22: 0 | J22: 0 | K22: 0.00 | L22: 0
F23: 0 | H23: 0 | J23: 0 | K23: 0.00 | L23: 0
F24: 0 | H24: 0 | J24: 0 | K24: 0.00 | L24: 0
F25: 0 | H25: 0 | J25: 0 | K25: 0.00 | L25: 0
F26: 0 | H26: 0 | J26: 0 | K26: 0.00 | L26: 0
F27: 0 | H27: 0 | J27: 0 | K27: 0.00 | L27: 0
F28: 0 | H28: 0 | J28: 0 | K28: 0.00 | L28: 0
F29: 0 | H29: 0 | J29: 0 | K29: 0.00 | L29: 0
B30: 計 | F30: =SUM(F9:F29) -> 1,000,000 | H30: =SUM(H9:H29) -> 160,000 | J30: =SUM(J9:J29) -> 320,000 | L30: =SUM(L9:L29) -> 520,000

Sheet 出来高内訳書 見本(契約外・納品等)
B1: 出来高内訳書 | L1: No,2
H2: 作成年月日 | I2: 2025.9.1
B3: 工 事 名 称 | C3: 〇〇マンション新築 | H3: 貴 社 名 | I3: 〇△電気設備 株式会社
B4: 注 文 番 号 | H4: 住 所 | I4: さいたま市大宮区高鼻町〇-〇 | L4: ※ 税 抜
H5: 登録番号 | I5: T | J5: 1234567890
A7: 取引年月日 | B7: 工事種別 | C7: 契約金額 又は注文金額 | G7: 前回までの出来高 | I7: 今回出来高 | K7: 残 金 | M7: 税率 | N7: 10%
C8: 数量 | D8: 単位 | E8: 単価 | F8: 金額 | G8: 数量 | H8: 金額 | I8: 数量 | J8: 金額 | K8: 数量 | L8: 金額 | N8: 8%
A9: 2025.9.1 | B9: LED蛍光管 40W型 10本入 | C9: 3.00 | D9: 箱 | E9: 10,000 | F9: =SUM(C9*E9) -> 30,000 | H9: =SUM(E9*G9) -> 0 | I9: 3.00 | J9: =SUM(E9*I9) -> 30,000 | K9: =SUM(C9-G9-I9) -> 0.00 | L9: =SUM(F9-H9-J9) -> 0 | M9: 10% | N9: 0%
A10: 2025.9.4 | B10: LED球 60W型 10個入 | C10: 2.00 | D10: 箱 | E10: 5,000 | F10: =SUM(C10*E10) -> 10,000 | H10: =SUM(E10*G10) -> 0 | I10: 2.00 | J10: =SUM(E10*I10) -> 10,000 | K10: =SUM(C10-G10-I10) -> 0.00 | L10: =SUM(F10-H10-J10) -> 0 | M10: 10%
F11: 0 | H11: 0 | J11: 0 | K11: 0.00 | L11: 0
F12: 0 | H12: 0 | J12: 0 | K12: 0.00 | L12: 0
F13: 0 | H13: 0 | J13: 0 | K13: 0.00 | L13: 0
F14: 0 | H14: 0 | J14: 0 | K14: 0.00 | L14: 0
F15: 0 | H15: 0 | J15: 0 | K15: 0.00 | L15: 0
F16: 0 | H16: 0 | J16: 0 | K16: 0.00 | L16: 0
F17: 0 | H17: 0 | J17: 0 | K17: 0.00 | L17: 0
F18: 0 | H18: 0 | J18: 0 | K18: 0.00 | L18: 0
F19: 0 | H19: 0 | J19: 0 | K19: 0.00 | L19: 0
F20: 0 | H20: 0 | J20: 0 | K20: 0.00 | L20: 0
F21: 0 | H21: 0 | J21: 0 | K21: 0.00 | L21: 0
F22: 0 | H22: 0 | J22: 0 | K22: 0.00 | L22: 0
F23: 0 | H23: 0 | J23: 0 | K23: 0.00 | L23: 0
F24: 0 | H24: 0 | J24: 0 | K24: 0.00 | L24: 0
F25: 0 | H25: 0 | J25: 0 | K25: 0.00 | L25: 0
F26: 0 | H26: 0 | J26: 0 | K26: 0.00 | L26: 0
F27: 0 | H27: 0 | J27: 0 | K27: 0.00 | L27: 0
F28: 0 | H28: 0 | J28: 0 | K28: 0.00 | L28: 0
F29: 0 | H29: 0 | J29: 0 | K29: 0.00 | L29: 0
B30: 計 | F30: =SUM(F9:F29) -> 40,000 | H30: =SUM(H9:H29) -> 0 | J30: =SUM(J9:J29) -> 40,000 | L30: =SUM(L9:L29) -> 0

Sheet 総括表 見本
A1: 総 括 表 （請 求 書 一 覧）
G2: No.1
D3: 作成年月日 | E3: 西暦 | F3: 2025.9.15
D4: 貴社名 | E4: 〇△電気設備 株式会社
A5: 共栄建設株式会社 御中 | D5: 住 所 | E5: 〒330-0803
A6: さいたま市大宮区高鼻町1-25-1 | E6: 埼玉県さいたま市大宮区高鼻町1-25-1
D7: TEL / FAX | E7: tel048-648-2211 fax048-642-2218
D8: 登録番号 | E8: T | F8: 01234567890
A11: 請求年月日 | B11: 注文番号 | C11: 工事名称 | E11: 契約金額(税込) | F11: 今回請求額(税込）
A12: 2025.9.15 | B12: 12345 | C12: 〇〇マンション新築 | E12: 1,100,000 | F12: 352,000
A13: 2025.9.15 | B13: 19876 | C13: △△ビル新築 | E13: 330,000 | F13: 330,000
A14: 2025.10.2 | C14: ×××ビルLED蛍光管納品 | F14: 33,000
E27: 計 | F27: =SUM(F12:F26) -> 715,000
A28: ※ 太線枠内をご記入ください。
A29: ※ 期間中に発行した指定請求書（工事別）をこちらの用紙に一覧としてまとめてご記入ください
